fUST/lending_fUST_20250912
["ID","MTS","AMOUNT","RATE_DAILY","PERIOD"]
[385148638,1757673065572,-480.0,0.00015616,2]
[385148639,1757673065582,-480.0,0.00015616,2]
[385148640,1757673065592,-480.0,0.00015616,2]
[385148641,1757673065602,-480.0,0.00015616,2]
[385148642,1757673065612,-480.83,0.00015616,2]
[385148643,1757673065621,-480.0,0.00015616,2]
[385148644,1757673065631,-480.0,0.00015616,2]
[385148645,1757673065640,-2550.41,0.00015616,2]
[385148646,1757673065650,-480.0,0.00015616,2]
[385148647,1757673065659,-495.0,0.00015616,2]
[385148648,1757673065669,-480.0,0.00015616,2]
[385148649,1757673065678,-480.0,0.00015616,2]
[385148650,1757673065687,-480.0,0.00015616,2]
[385148651,1757673065697,-521.29,0.00015616,2]
[385148652,1757673065707,-480.0,0.00015616,2]
[385148653,1757673065716,-3449.72,0.00015616,2]
[385148654,1757673065726,-506.33,0.00015616,2]
[385148655,1757673065735,-480.0,0.00015616,2]
[385148656,1757673065745,-480.0,0.00015616,2]
[385148657,1757673065754,-606.05,0.00015616,2]
[385148658,1757673065764,-480.0,0.00015616,2]
[385148659,1757673065774,-480.0,0.00015616,2]
[385148660,1757673065784,-480.0,0.00015616,2]
[385148661,1757673065794,-485.63984628,0.00015616,2]
[385148662,1757673065804,-480.0,0.00015616,2]
[385148663,1757673065813,-480.0,0.00015616,2]
[385148664,1757673065823,-480.0,0.00015616,2]
[385148665,1757673065833,-951.78,0.00015616,2]
[385148666,1757673065843,-1363.58,0.00015616,2]
[385148667,1757673065853,-480.0,0.00015616,2]
[385148668,1757673065863,-552.65,0.00015616,2]
[385148669,1757673065873,-480.0,0.00015616,2]
[385148670,1757673065882,-745.71,0.00015616,2]
[385148671,1757673065892,-607.04,0.00015616,2]
[385148672,1757673065902,-480.0,0.00015616,2]
[385148673,1757673065911,-480.0,0.00015616,2]
[385148674,1757673065921,-480.0,0.00015616,2]
[385148675,1757673065930,-1396.93,0.00015616,2]
[385148676,1757673065939,-596.39,0.00015616,2]
[385148677,1757673065949,-480.0,0.00015616,2]
[385148678,1757673065959,-480.0,0.00015616,2]
[385148679,1757673065968,-480.0,0.00015616,2]
[385148680,1757673065978,-480.0,0.00015616,2]
[385148681,1757673065988,-480.0,0.00015616,2]
[385148683,1757673065998,-480.0,0.00015616,2]
[385148684,1757673066008,-318.24,0.00015616,2]
[385148685,1757673066021,-480.0,0.00015616,2]
[385148686,1757673066031,-480.0,0.00015616,2]
[385148687,1757673066041,-851.25,0.00015616,2]
[385148688,1757673066051,-480.0,0.00015616,2]
[385148689,1757673066061,-480.0,0.00015616,2]
[385148690,1757673066072,-4670.62,0.00015616,2]
[385148691,1757673066081,-480.0,0.00015616,2]
[385148692,1757673066091,-480.0,0.00015616,2]
[385148693,1757673066101,-480.0,0.00015616,2]
[385148694,1757673066111,-557.97,0.00015616,2]
[385148695,1757673066121,-536.84,0.00015616,2]
[385148696,1757673066217,-480.0,0.00015616,2]
[385148697,1757673066228,-531.77,0.00015616,2]
[385148698,1757673066238,-514.05,0.00015616,2]
[385148700,1757673066247,-480.0,0.00015616,2]
[385148701,1757673066257,-480.0,0.00015616,2]
[385148702,1757673066266,-613.39,0.00015616,2]
[385148703,1757673066276,-480.0,0.00015616,2]
[385148704,1757673066286,-544.67,0.00015616,2]
[385148705,1757673066295,-680.0,0.00015616,2]
[385148706,1757673066305,-480.0,0.00015616,2]
[385148707,1757673066315,-600.17,0.00015616,2]
[385148708,1757673066324,-480.0,0.00015616,2]
[385148709,1757673066334,-782.97,0.00015616,2]
[385148710,1757673066345,-480.0,0.00015616,2]
[385148711,1757673066354,-480.0,0.00015616,2]
[385148712,1757673066364,-480.0,0.00015616,2]
[385148713,1757673066374,-480.0,0.00015616,2]
[385148714,1757673066384,-533.97,0.00015616,2]
[385148715,1757673066394,-480.0,0.00015616,2]
[385148716,1757673066403,-480.0,0.00015616,2]
[385148717,1757673066414,-480.0,0.00015616,2]
[385148718,1757673066424,-640.0,0.00015616,2]
[385148719,1757673066433,-480.0,0.00015616,2]
[385148721,1757673066443,-480.0,0.00015616,2]
[385148722,1757673066452,-1539.24311429,0.00015616,2]
[385148723,1757673066461,-500.0,0.00015616,2]
[385148724,1757673066469,-1427.55724992,0.00015616,2]
[385148725,1757673066590,-480.0,0.00013972,2]
[385148726,1757673066600,-191.77936835,0.00014246,2]
[385148727,1757673066611,-288.22063165,0.00014246,2]
[385148728,1757673066620,-480.0,0.00014246,2]
[385148729,1757673066631,-178.45454919,0.0001452,2]
[385148730,1757673066640,-480.0,0.0001452,2]
[385148731,1757673066651,-480.0,0.00014794,2]
[385148732,1757673066662,-480.0,0.00015068,2]
[385148733,1757673066671,-572.44275008,0.00015616,2]
[385148734,1757673066681,-2000.0,0.00015616,2]
[385148735,1757673066690,-151.0,0.000157,2]
[385148736,1757673066700,-2500.0,0.00015864,2]
[385148737,1757673066710,-2500.0,0.00015864,2]
[385148738,1757673066719,-500.0,0.0001589,2]
[385148739,1757673066729,-480.0,0.0001589,2]
[385148740,1757673066738,-559.19,0.0001589,2]
[385148741,1757673066747,-480.0,0.0001589,2]
[385148742,1757673066757,-377.72164294,0.0001589,2]
[385148743,1757673066767,-480.0,0.0001589,2]
[385148744,1757673066776,-480.0,0.0001589,2]
[385148745,1757673066786,-480.0,0.0001589,2]
[385148746,1757673066795,-480.0,0.0001589,2]
[385148747,1757673066805,-496.66,0.0001589,2]
[385148748,1757673066815,-490.32980837,0.0001589,2]
[385148749,1757673066825,-74.21956108,0.0001589,2]
[385148750,1757673066844,-405.78043892,0.0001589,2]
[385148751,1757673066854,-480.0,0.0001589,2]
[385148752,1757673066864,-480.0,0.0001589,2]
[385148753,1757673066874,-480.0,0.0001589,2]
[385148754,1757673066884,-480.0,0.0001589,2]
[385148755,1757673066894,-187.55080197,0.0001589,2]
[385148756,1757673066903,-480.0,0.0001589,2]
[385148757,1757673066913,-480.0,0.0001589,2]
[385148758,1757673066922,-542.48944768,0.0001589,2]
[385148759,1757673066932,-480.0,0.0001589,2]
[385148760,1757673066942,-480.83,0.0001589,2]
[385148761,1757673066952,-480.0,0.0001589,2]
[385148762,1757673066961,-480.0,0.0001589,2]
[385148763,1757673066971,-2550.41,0.0001589,2]
[385148764,1757673066980,-480.0,0.0001589,2]
[385148765,1757673066990,-495.0,0.0001589,2]
[385148766,1757673067000,-480.0,0.0001589,2]
[385148767,1757673067009,-480.0,0.0001589,2]
[385148768,1757673067021,-480.0,0.0001589,2]
[385148769,1757673067030,-521.29,0.0001589,2]
[385148770,1757673067040,-480.0,0.0001589,2]
[385148771,1757673067049,-3449.72,0.0001589,2]
[385148772,1757673067058,-506.33,0.0001589,2]
[385148773,1757673067069,-480.0,0.0001589,2]
[385148774,1757673067079,-480.0,0.0001589,2]
[385148775,1757673067088,-606.05,0.0001589,2]
[385148776,1757673067099,-480.0,0.0001589,2]
[385148777,1757673067109,-480.0,0.0001589,2]
[385148778,1757673067119,-170.61337795,0.0001589,2]
[385148779,1757673067131,-309.38662205,0.0001589,2]
[385148780,1757673067140,-187.5911995,0.0001589,2]
[385148781,1757673067522,-485.00265771,0.00013698,2]
[385148782,1757673067532,-485.7811213,0.00013698,2]
[385148783,1757673067541,-480.0,0.00015342,2]
[385148784,1757673067555,-480.0,0.00015616,2]
[385148785,1757673067567,-292.4088005,0.0001589,2]
[385148786,1757673067577,-480.0,0.0001589,2]
[385148787,1757673067586,-480.0,0.0001589,2]
[385148788,1757673067596,-951.78,0.0001589,2]
[385148789,1757673067606,-1363.58,0.0001589,2]
[385148790,1757673067616,-480.0,0.0001589,2]
[385148791,1757673067718,-552.65,0.0001589,2]
[385148792,1757673067728,-365.04276727,0.0001589,2]
[385148793,1757673067737,-745.71,0.0001589,2]
[385148794,1757673067748,-607.04,0.0001589,2]
[385148795,1757673067758,-480.0,0.0001589,2]
[385148796,1757673067770,-480.0,0.0001589,2]
[385148797,1757673067780,-480.0,0.0001589,2]
[385148798,1757673067790,-1396.93,0.0001589,2]
[385148799,1757673067801,-596.39,0.0001589,2]
[385148800,1757673067810,-480.0,0.0001589,2]
[385148801,1757673067821,-480.0,0.0001589,2]
[385148802,1757673067830,-480.0,0.0001589,2]
[385148803,1757673067839,-480.0,0.0001589,2]
[385148804,1757673067849,-480.0,0.0001589,2]
[385148805,1757673067858,-480.0,0.0001589,2]
[385148806,1757673067869,-480.0,0.0001589,2]
[385148807,1757673067880,-851.25,0.0001589,2]
[385148808,1757673067890,-180.61785029,0.0001589,2]
[385148809,1757673067902,-299.38214971,0.0001589,2]
[385148810,1757673067911,-480.0,0.0001589,2]
[385148811,1757673067921,-1308.44562855,0.0001589,2]
[385148812,1757673067933,-3362.17437145,0.0001589,2]
[385148813,1757673067944,-480.0,0.0001589,2]
[385148814,1757673067954,-480.0,0.0001589,2]
[385148815,1757673067963,-480.0,0.0001589,2]
[385148816,1757673067972,-557.97,0.0001589,2]
[385148817,1757673067984,-536.84,0.0001589,2]
[385148818,1757673067994,-480.0,0.0001589,2]
[385148819,1757673068004,-531.77,0.0001589,2]
[385148820,1757673068017,-514.05,0.0001589,2]
[385148821,1757673068030,-480.0,0.0001589,2]
[385148822,1757673068039,-480.0,0.0001589,2]
[385148823,1757673068049,-613.39,0.0001589,2]
[385148824,1757673068060,-480.0,0.0001589,2]
[385148825,1757673068070,-544.67,0.0001589,2]
[385148826,1757673068081,-680.0,0.0001589,2]
[385148827,1757673068091,-480.0,0.0001589,2]
[385148828,1757673068101,-600.17,0.0001589,2]
[385148829,1757673068111,-330.7824775,0.0001589,2]
[385148830,1757673068122,-782.97,0.0001589,2]
[385148831,1757673068131,-480.0,0.0001589,2]
[385148832,1757673068141,-480.0,0.0001589,2]
[385148833,1757673068150,-480.0,0.0001589,2]
[385148834,1757673068160,-480.0,0.0001589,2]
[385148835,1757673068169,-533.97,0.0001589,2]
[385148836,1757673068179,-480.0,0.0001589,2]
[385148837,1757673068188,-480.0,0.0001589,2]
[385148838,1757673068198,-480.0,0.0001589,2]
[385148839,1757673068207,-640.0,0.0001589,2]
[385148840,1757673068216,-480.0,0.0001589,2]
[385148841,1757673068226,-480.0,0.0001589,2]
[385148842,1757673068235,-480.0,0.0001589,2]
[385148843,1757673068244,-151.0,0.000159,2]
[385148844,1757673068254,-260.0,0.00015903,2]
[385148845,1757673068263,-500.0,0.00015916,2]
[385148846,1757673068273,-500.99527881,0.00015916,2]
[385148847,1757673068283,-500.82580189,0.00015943,2]
[385148848,1757673068294,-501.1659984,0.0001599,2]
[385148849,1757673068305,-502.92865718,0.0001599,2]
[385148850,1757673068315,-500.67034155,0.0001599,2]
[385148851,1757673068324,-502.65153199,0.0001599,2]
[385148852,1757673068333,-500.0,0.00016164,2]
[385148853,1757673068342,-480.0,0.00016164,2]
[385148854,1757673068351,-559.19,0.00016164,2]
[385148855,1757673068361,-480.0,0.00016164,2]
[385148856,1757673068370,-480.0,0.00016164,2]
[385148857,1757673068380,-480.0,0.00016164,2]
[385148858,1757673068390,-480.0,0.00016164,2]
[385148859,1757673068400,-480.0,0.00016164,2]
[385148860,1757673068410,-496.66,0.00016164,2]
[385148861,1757673068421,-517.93457634,0.00016164,2]
[385148862,1757673068431,-480.0,0.00016164,2]
[385148863,1757673068442,-598.8356739,0.00016164,2]
[385148864,1757673068452,-480.0,0.00016164,2]
[385148865,1757673068461,-480.0,0.00016164,2]
[385148866,1757673068470,-480.0,0.00016164,2]
[385148867,1757673068480,-480.83,0.00016164,2]
[385148868,1757673068490,-480.0,0.00016164,2]
[385148869,1757673068500,-480.0,0.00016164,2]
[385148870,1757673068510,-2550.41,0.00016164,2]
[385148871,1757673068519,-480.0,0.00016164,2]
[385148872,1757673068530,-495.0,0.00016164,2]
[385148873,1757673068539,-480.0,0.00016164,2]
[385148874,1757673068548,-480.0,0.00016164,2]
[385148875,1757673068558,-480.0,0.00016164,2]
[385148876,1757673068567,-521.29,0.00016164,2]
[385148877,1757673068577,-600.10174792,0.00016164,2]
[385148878,1757673068587,-3449.72,0.00016164,2]
[385148879,1757673068597,-506.33,0.00016164,2]
[385148880,1757673068607,-480.0,0.00016164,2]
[385148881,1757673068617,-480.0,0.00016164,2]
[385148882,1757673068627,-606.05,0.00016164,2]
[385148883,1757673068638,-480.0,0.00016164,2]
[385148884,1757673068650,-480.0,0.00016164,2]
[385148885,1757673068661,-480.0,0.00016164,2]
[385148886,1757673068671,-480.0,0.00016164,2]
[385148887,1757673068680,-480.0,0.00016164,2]
[385148888,1757673068690,-480.0,0.00016164,2]
[385148889,1757673068699,-951.78,0.00016164,2]
[385148890,1757673068709,-1363.58,0.00016164,2]
[385148891,1757673068719,-480.0,0.00016164,2]
[385148892,1757673068729,-552.65,0.00016164,2]
[385148893,1757673068739,-745.71,0.00016164,2]
[385148894,1757673068750,-607.04,0.00016164,2]
[385148895,1757673068759,-480.0,0.00016164,2]
[385148896,1757673068770,-480.0,0.00016164,2]
[385148897,1757673068780,-1396.93,0.00016164,2]
[385148898,1757673068791,-596.39,0.00016164,2]
[385148899,1757673068802,-480.0,0.00016164,2]
[385148900,1757673068814,-480.0,0.00016164,2]
[385148901,1757673068823,-535.25068982,0.00016164,2]
[385148902,1757673068833,-480.0,0.00016164,2]
[385148903,1757673068844,-480.0,0.00016164,2]
[385148904,1757673068854,-480.0,0.00016164,2]
[385148905,1757673068865,-851.25,0.00016164,2]
[385148906,1757673068875,-480.0,0.00016164,2]
[385148907,1757673068887,-480.0,0.00016164,2]
[385148908,1757673068908,-4670.62,0.00016164,2]
[385148909,1757673068919,-480.0,0.00016164,2]
[385148910,1757673068928,-480.0,0.00016164,2]
[385148911,1757673068938,-479.3960093,0.00016164,2]
[385148912,1757673068949,-557.97,0.00016164,2]
[385148913,1757673068959,-536.84,0.00016164,2]
[385148914,1757673068969,-480.0,0.00016164,2]
[385148915,1757673068978,-531.77,0.00016164,2]
[385148916,1757673068988,-514.05,0.00016164,2]
[385148917,1757673068998,-334.87301986,0.00016164,2]
[385148918,1757673069008,-480.0,0.00016164,2]
[385148919,1757673069020,-613.39,0.00016164,2]
[385148920,1757673069032,-480.0,0.00016164,2]
[385148921,1757673069042,-544.67,0.00016164,2]
[385148922,1757673069052,-680.0,0.00016164,2]
[385148923,1757673069063,-600.17,0.00016164,2]
[385148924,1757673069073,-782.97,0.00016164,2]
[385148925,1757673069083,-480.0,0.00016164,2]
[385148926,1757673069092,-480.0,0.00016164,2]
[385148927,1757673069104,-480.0,0.00016164,2]
[385148928,1757673069114,-480.0,0.00016164,2]
[385148929,1757673069123,-533.97,0.00016164,2]
[385148930,1757673069133,-480.0,0.00016164,2]
[385148931,1757673069143,-480.0,0.00016164,2]
[385148932,1757673069152,-480.0,0.00016164,2]
[385148933,1757673069275,-640.0,0.00016164,2]
[385148934,1757673069284,-393.5565196,0.00016164,2]
[385148935,1757673069294,-480.0,0.00016164,2]
[385148936,1757673069303,-480.0,0.00016164,2]
[385148937,1757673069312,-2500.0,0.00016164,2]
[385148938,1757673069322,-2500.0,0.00016164,2]
[385148939,1757673069331,-500.0,0.00016164,2]
[385148940,1757673069341,-9497.2310244,0.00016208,2]
[385148941,1757673069350,-3000.0,0.000164,2]
[385148942,1757673069359,-3000.0,0.000164,2]
[385148943,1757673069368,-1000.0,0.00016412,2]
[385148944,1757673069377,-2000.0,0.00016412,2]
[385148945,1757673069387,-500.0,0.00016438,2]
[385148946,1757673069396,-480.0,0.00016438,2]
[385148947,1757673069405,-559.19,0.00016438,2]
[385148948,1757673069416,-480.0,0.00016438,2]
[385148949,1757673069425,-480.0,0.00016438,2]
[385148950,1757673069434,-480.0,0.00016438,2]
[385148951,1757673069443,-480.0,0.00016438,2]
[385148952,1757673069453,-480.0,0.00016438,2]
[385148953,1757673069462,-496.66,0.00016438,2]
[385148954,1757673069471,-480.0,0.00016438,2]
[385148955,1757673069480,-500.0,0.00016438,2]
[385148956,1757673069494,-500.0,0.00016438,2]
[385148957,1757673069505,-504.33265287,0.00016438,2]
[385148958,1757673069514,-480.0,0.00016438,2]
[385148959,1757673069524,-480.0,0.00016438,2]
[385148960,1757673069534,-480.83,0.00016438,2]
[385148961,1757673069544,-480.0,0.00016438,2]
[385148962,1757673069554,-480.0,0.00016438,2]
[385148963,1757673069564,-2550.41,0.00016438,2]
[385148964,1757673069576,-480.0,0.00016438,2]
[385148965,1757673069587,-495.0,0.00016438,2]
[385148966,1757673069597,-480.0,0.00016438,2]
[385148967,1757673069608,-480.0,0.00016438,2]
[385148968,1757673069617,-521.29,0.00016438,2]
[385148969,1757673069627,-3449.72,0.00016438,2]
[385148970,1757673069637,-506.33,0.00016438,2]
[385148971,1757673069646,-480.0,0.00016438,2]
[385148972,1757673069656,-500.0,0.00016438,2]
[385148973,1757673069665,-500.0,0.00016438,2]
[385148974,1757673069675,-500.0,0.00016438,2]
[385148975,1757673069684,-500.0,0.00016438,2]
[385148976,1757673069693,-500.0,0.00016438,2]
[385148977,1757673069702,-500.0,0.00016438,2]
[385148978,1757673069712,-500.0,0.00016438,2]
[385148979,1757673069721,-500.0,0.00016438,2]
[385148980,1757673069731,-500.0,0.00016438,2]
[385148981,1757673069740,-500.0,0.00016438,2]
[385148982,1757673069749,-500.0,0.00016438,2]
[385148983,1757673069758,-480.0,0.00016438,2]
[385148984,1757673069768,-606.05,0.00016438,2]
[385148985,1757673069777,-480.0,0.00016438,2]
[385148986,1757673069787,-582.02554439,0.00016438,2]
[385148987,1757673069796,-597.5525167,0.00016438,2]
[385148988,1757673069805,-480.0,0.00016438,2]
[385148989,1757673069815,-480.0,0.00016438,2]
[385148990,1757673069824,-480.0,0.00016438,2]
[385148991,1757673069833,-951.78,0.00016438,2]
[385148992,1757673069843,-1363.58,0.00016438,2]
[385148993,1757673069852,-480.0,0.00016438,2]
[385148994,1757673069862,-552.65,0.00016438,2]
[385148995,1757673069872,-745.71,0.00016438,2]
[385148997,1757673069882,-607.04,0.00016438,2]
[385148998,1757673069891,-480.0,0.00016438,2]
[385148999,1757673069901,-480.0,0.00016438,2]
[385149000,1757673069911,-1396.93,0.00016438,2]
[385149001,1757673069920,-596.39,0.00016438,2]
[385149002,1757673069930,-480.0,0.00016438,2]
[385149003,1757673069940,-480.0,0.00016438,2]
[385149004,1757673069949,-480.0,0.00016438,2]
[385149005,1757673069959,-480.0,0.00016438,2]
[385149006,1757673069969,-851.25,0.00016438,2]
[385149007,1757673069978,-480.0,0.00016438,2]
[385149008,1757673069988,-480.0,0.00016438,2]
[385149009,1757673069997,-4670.62,0.00016438,2]
[385149010,1757673070007,-480.0,0.00016438,2]
[385149011,1757673070017,-480.0,0.00016438,2]
[385149012,1757673070029,-557.97,0.00016438,2]
[385149013,1757673070038,-536.84,0.00016438,2]
[385149014,1757673070047,-480.0,0.00016438,2]
[385149015,1757673070057,-531.77,0.00016438,2]
[385149016,1757673070068,-514.05,0.00016438,2]
[385149017,1757673070078,-174.50086071,0.00016438,2]
[385149018,1757673070087,-613.39,0.00016438,2]
[385149019,1757673070097,-577.50064119,0.00016438,2]
[385149020,1757673070107,-544.67,0.00016438,2]
[385149021,1757673070119,-680.0,0.00016438,2]
[385149022,1757673070128,-600.17,0.00016438,2]
[385149023,1757673070138,-782.97,0.00016438,2]
[385149024,1757673070148,-480.0,0.00016438,2]
[385149025,1757673070158,-480.0,0.00016438,2]
[385149026,1757673070167,-480.0,0.00016438,2]
[385149027,1757673070177,-533.97,0.00016438,2]
[385149028,1757673070186,-200.96376046,0.00016438,2]
[385149029,1757673070196,-480.0,0.00016438,2]
[385149030,1757673070206,-480.0,0.00016438,2]
[385149031,1757673070215,-640.0,0.00016438,2]
[385149032,1757673070225,-480.0,0.00016438,2]
[385149033,1757673070234,-480.0,0.00016438,2]
[385149034,1757673070243,-254.94945394,0.00016438,2]
[385149035,1757673070252,-360.0,0.00016451,2]
[385149036,1757673070262,-600.0,0.00016486,2]
[385149037,1757673070272,-500.0,0.00016712,2]
[385149038,1757673070281,-480.0,0.00016712,2]
[385149039,1757673070291,-559.19,0.00016712,2]
[385149040,1757673070301,-480.0,0.00016712,2]
[385149041,1757673070310,-480.0,0.00016712,2]
[385149042,1757673070320,-552.31,0.00016712,2]
[385149043,1757673070329,-480.0,0.00016712,2]
[385149044,1757673070339,-496.66,0.00016712,2]
[385149045,1757673070349,-480.0,0.00016712,2]
[385149046,1757673070359,-480.0,0.00016712,2]
[385149047,1757673070369,-480.0,0.00016712,2]
[385149048,1757673070378,-480.83,0.00016712,2]
[385149049,1757673070387,-480.0,0.00016712,2]
[385149050,1757673070397,-480.0,0.00016712,2]
[385149051,1757673070407,-2550.41,0.00016712,2]
[385149052,1757673070416,-480.0,0.00016712,2]
[385149053,1757673070425,-495.0,0.00016712,2]
[385149054,1757673070434,-480.0,0.00016712,2]
[385149055,1757673070444,-480.0,0.00016712,2]
[385149056,1757673070455,-521.29,0.00016712,2]
[385149057,1757673070465,-506.33,0.00016712,2]
[385149058,1757673070475,-3449.72,0.00016712,2]
[385149059,1757673070485,-296.50339885,0.00016712,2]
[385149060,1757673070496,-500.0,0.00016712,2]
[385149061,1757673070506,-480.0,0.00016712,2]
[385149062,1757673070515,-606.05,0.00016712,2]
[385149063,1757673070525,-480.0,0.00016712,2]
[385149064,1757673070535,-480.0,0.00016712,2]
[385149065,1757673070627,-480.0,0.00016712,2]
[385149066,1757673070637,-480.0,0.00016712,2]
[385149067,1757673070647,-951.78,0.00016712,2]
[385149068,1757673070656,-1363.58,0.00016712,2]
[385149069,1757673070666,-480.0,0.00016712,2]
[385149070,1757673070679,-552.65,0.00016712,2]
[385149071,1757673070689,-745.71,0.00016712,2]
[385149072,1757673070699,-607.04,0.00016712,2]
[385149073,1757673070708,-480.0,0.00016712,2]
[385149074,1757673070718,-480.0,0.00016712,2]
[385149075,1757673070728,-1396.93,0.00016712,2]
[385149076,1757673070737,-596.39,0.00016712,2]
[385149077,1757673070747,-480.0,0.00016712,2]
[385149078,1757673070756,-480.0,0.00016712,2]
[385149079,1757673070766,-480.0,0.00016712,2]
[385149080,1757673070775,-480.0,0.00016712,2]
[385149081,1757673070784,-851.25,0.00016712,2]
[385149082,1757673070794,-480.0,0.00016712,2]
[385149083,1757673070803,-480.0,0.00016712,2]
[385149084,1757673070813,-4670.62,0.00016712,2]
[385149085,1757673070822,-480.0,0.00016712,2]
[385149086,1757673070832,-480.0,0.00016712,2]
[385149087,1757673070841,-557.97,0.00016712,2]
[385149088,1757673070850,-536.84,0.00016712,2]
[385149089,1757673070860,-480.0,0.00016712,2]
[385149090,1757673070870,-531.77,0.00016712,2]
[385149091,1757673070880,-514.05,0.00016712,2]
[385149092,1757673070889,-613.39,0.00016712,2]
[385149093,1757673070899,-544.67,0.00016712,2]
[385149094,1757673070908,-680.0,0.00016712,2]
[385149095,1757673070917,-600.17,0.00016712,2]
[385149096,1757673070927,-782.97,0.00016712,2]
[385149097,1757673070936,-480.0,0.00016712,2]
[385149098,1757673070945,-480.0,0.00016712,2]
[385149099,1757673070955,-480.0,0.00016712,2]
[385149100,1757673070964,-533.97,0.00016712,2]
[385149101,1757673070974,-480.0,0.00016712,2]
[385149102,1757673070983,-480.0,0.00016712,2]
[385149103,1757673071001,-640.0,0.00016712,2]
[385149104,1757673071013,-480.0,0.00016712,2]
[385149105,1757673071028,-480.0,0.00016712,2]
[385149106,1757673071040,-2000.0,0.00016712,2]
[385149107,1757673071050,-1000.0,0.00016712,2]
[385149108,1757673071060,-3049.2518944,0.00016722,2]
[385149109,1757673071071,-2119.1186794,0.00016768,2]
[385149110,1757673071082,-4761.90329949,0.00016886,2]
[385149111,1757673071093,-220.0,0.00016986,2]
[385149112,1757673071103,-480.0,0.00016986,2]
[385149113,1757673071113,-559.19,0.00016986,2]
[385149114,1757673071124,-480.0,0.00016986,2]
[385149115,1757673071134,-480.0,0.00016986,2]
[385149116,1757673071144,-375.48128889,0.00016986,2]
[385149117,1757673071153,-496.66,0.00016986,2]
[385149118,1757673071164,-480.0,0.00016986,2]
[385149119,1757673071175,-480.0,0.00016986,2]
[385149120,1757673071185,-480.0,0.00016986,2]
[385149121,1757673071195,-480.83,0.00016986,2]
[385149122,1757673071205,-480.0,0.00016986,2]
[385149123,1757673071215,-480.0,0.00016986,2]
[385149124,1757673071225,-2550.41,0.00016986,2]
[385149125,1757673071235,-414.16535971,0.00016986,2]
[385149126,1757673071245,-495.0,0.00016986,2]
[385149127,1757673071255,-480.0,0.00016986,2]
[385149128,1757673071264,-480.0,0.00016986,2]
[385149129,1757673071274,-521.29,0.00016986,2]
[385149130,1757673071284,-506.33,0.00016986,2]
[385149131,1757673071294,-3449.72,0.00016986,2]
[385149132,1757673071303,-500.0,0.00016986,2]
[385149133,1757673071313,-480.0,0.00016986,2]
[385149134,1757673071322,-606.05,0.00016986,2]
[385149135,1757673071332,-480.0,0.00016986,2]
[385149136,1757673071341,-480.0,0.00016986,2]
[385149137,1757673071353,-480.0,0.00016986,2]
[385149138,1757673071363,-480.0,0.00016986,2]
[385149139,1757673071372,-951.78,0.00016986,2]
[385149140,1757673071382,-1363.58,0.00016986,2]
[385149141,1757673071391,-480.0,0.00016986,2]